bitfinex-derivatives/quotes_ETHF0:USTF0_20230106
["timestamp","ask_amount","ask_price","bid_price","bid_amount"]
[1673041245602,1.578,1268.0,1267.7,12.81641549]
[1673041245815,1.578,1268.0,1267.8,3.2078]
[1673041253805,1.5754675,1268.0,1267.8,3.2078]
[1673041256223,1.5754675,1268.0,1267.7,13.99661947]
[1673041256645,1.5754675,1268.0,1267.8,3.2078]
[1673041258637,1.5754675,1268.0,1267.7,13.99661947]
[1673041258847,1.5754675,1268.0,1267.8,3.2078]
[1673041259167,1.5754675,1268.0,1267.8,4.38800398]
[1673041260009,1.5754675,1268.0,1267.8,1.18020398]
[1673041260416,1.5754675,1268.0,1267.8,4.38800398]
[1673041260622,1.5754675,1268.0,1267.8,1.18020398]
[1673041260842,1.5754675,1268.0,1267.8,4.38800398]
[1673041262632,1.5754675,1268.0,1267.8,6.16041947]
[1673041263255,1.5754675,1268.0,1267.9,1.18020398]
[1673041264101,1.5754675,1268.0,1267.9,4.38800398]
[1673041266097,1.5754675,1268.0,1267.9,1.18020398]
[1673041266524,1.5754675,1268.0,1267.9,4.38800398]
[1673041268842,1.5754675,1268.0,1267.9,3.2078]
[1673041269892,1.5754675,1268.0,1267.8,2.95261947]
[1673041270103,1.5754675,1268.0,1267.9,3.2078]
[1673041274936,1.579,1268.0,1267.8,1.18020398]
[1673041275150,3.156,1267.9,1267.7,4.38800398]
[1673041275465,1.571,1267.8,1267.6,2.95261947]
[1673041275676,1.571,1267.8,1267.6,1.18020398]
[1673041276827,1.571,1267.8,1267.5,7.73941947]
[1673041278091,1.571,1267.8,1267.6,1.18020398]
[1673041281559,1.571,1267.8,1267.5,7.73941947]
[1673041284194,1.571,1267.8,1267.6,3.2078]
[1673041284396,1.579,1267.7,1267.6,3.2078]
[1673041284606,1.579,1267.7,1267.6,4.38800398]
[1673041284823,1.579,1267.7,1267.6,3.2078]
[1673041286400,1.579,1267.7,1267.5,2.75920398]
[1673041288720,1.579,1267.7,1267.5,5.96700398]
[1673041291237,1.571,1267.9,1267.6,1.564]
[1673041291444,1.579,1267.9,1267.7,4.7768]
[1673041298601,1.579,1267.9,1267.8,3.2078]
[1673041302071,1.579,1267.9,1267.7,4.7768]
[1673041304170,1.573,1267.8,1267.7,3.2078]
[1673041305326,1.573,1267.8,1267.6,5.96700398]
[1673041308365,1.573,1267.8,1267.6,4.7868]
[1673041309649,1.576,1267.7,1267.6,3.2078]
[1673041309976,1.577,1267.7,1267.6,3.2078]
[1673041312402,1.577,1267.7,1267.4,7.73941947]
[1673041314710,1.579,1267.7,1267.6,1.579]
[1673041314925,1.577,1267.8,1267.6,4.7868]
[1673041316494,1.577,1267.8,1267.6,5.96700398]
[1673041316753,1.577,1267.8,1267.6,4.7868]
[1673041319548,1.577,1267.8,1267.6,5.96700398]
[1673041324588,1.577,1267.8,1267.6,4.7868]
[1673041327221,1.573,1267.7,1267.5,5.95900398]
[1673041327427,1.573,1267.7,1267.5,5.95692968]
[1673041332372,1.573,1267.7,1267.5,4.7788]
[1673041335538,1.579,1267.6,1267.5,3.2078]
[1673041347083,1.579,1267.6,1267.4,6.54321549]
[1673041347295,1.579,1267.5,1267.3,1.77241549]
[1673041349499,1.579,1267.5,1267.3,4.98021549]
[1673041349710,1.579,1267.5,1267.3,1.77241549]
[1673041349920,1.579,1267.5,1267.3,4.98021549]
[1673041350135,1.579,1267.5,1267.3,1.77241549]
[1673041350344,1.579,1267.5,1267.3,4.98021549]
[1673041353392,1.579,1267.5,1267.3,3.2078]
[1673041355494,1.57183075,1267.5,1267.3,3.2078]
[1673041356237,1.576,1267.4,1267.3,3.2078]
[1673041358227,1.576,1267.4,1267.2,4.98021549]
[1673041365897,1.573,1267.5,1267.3,1.77241549]
[1673041366208,1.579,1267.6,1267.4,3.2078]
[1673041366742,1.577,1267.8,1267.5,1.579]
[1673041366948,6.87779092,1267.9,1267.6,4.7718]
[1673041367162,1.571,1267.9,1267.6,4.7718]
[1673041369585,1.576,1267.8,1267.6,3.2078]
[1673041373698,1.576,1267.8,1267.5,4.7868]
[1673041374008,1.576,1267.8,1267.5,1.579]
[1673041374216,1.576,1267.8,1267.5,4.7868]
[1673041374630,1.573,1267.6,1267.4,1.564]
[1673041380204,1.573,1267.6,1267.5,3.2078]
[1673041390824,1.573,1267.6,1267.4,4.7718]
[1673041391035,1.573,1267.6,1267.4,1.564]
[1673041391352,1.573,1267.6,1267.4,4.7718]
[1673041393657,1.573,1267.6,1267.4,1.564]
[1673041396814,1.573,1267.6,1267.4,3.33641549]
[1673041397337,1.573,1267.6,1267.4,1.564]
[1673041398077,1.573,1267.6,1267.4,4.7718]
[1673041403013,1.579,1267.6,1267.4,1.564]
[1673041403226,1.579,1267.6,1267.4,4.7718]
[1673041405433,1.579,1267.6,1267.4,6.54421549]
[1673041405957,1.579,1267.6,1267.5,3.2078]
[1673041408058,1.579,1267.6,1267.4,1.564]
[1673041408265,1.579,1267.6,1267.4,4.7718]
[1673041408679,1.579,1267.6,1267.4,6.54421549]
[1673041408890,1.579,1267.6,1267.4,3.33641549]
[1673041409103,1.579,1267.6,1267.4,6.54421549]
[1673041409833,1.579,1267.6,1267.4,4.7718]
[1673041410782,1.579,1267.6,1267.4,6.54421549]
[1673041410991,1.579,1267.6,1267.4,3.33641549]
[1673041411203,1.579,1267.6,1267.4,6.54421549]
[1673041411420,1.579,1267.6,1267.4,3.33641549]
[1673041411628,1.579,1267.6,1267.4,6.54421549]
[1673041414579,1.579,1267.6,1267.5,3.2078]
[1673041416048,1.579,1267.6,1267.4,6.54421549]
[1673041418042,1.579,1267.6,1267.4,3.33641549]
[1673041418251,1.579,1267.6,1267.4,6.54421549]
[1673041420780,1.579,1267.6,1267.4,6.53860959]
[1673041423091,1.579,1267.6,1267.4,6.55921549]
[1673041424662,1.579,1267.6,1267.5,1.77241549]
[1673041426771,1.579,1267.8,1267.5,3.35041549]
[1673041427081,1.579,1267.8,1267.6,3.2078]
[1673041427499,6.30664145,1267.8,1267.6,3.2078]
[1673041428984,6.30664145,1267.8,1267.5,4.7858]
[1673041433089,6.30664145,1267.8,1267.5,1.578]
[1673041436264,6.30664145,1267.8,1267.5,4.7858]
[1673041437735,1.579,1267.8,1267.7,3.2078]
[1673041439721,1.579,1267.8,1267.6,3.2078]
[1673041447923,1.579,1267.7,1267.6,3.2078]
[1673041449713,1.579,1267.7,1267.5,4.38727342]
[1673041458232,1.579,1267.7,1267.5,6.15968891]
[1673041459377,1.579,1267.7,1267.6,1.17947342]
[1673041460308,1.579,1267.7,1267.6,4.38727342]
[1673041461879,1.579,1267.7,1267.6,3.2078]
[1673041462730,6.30664145,1267.9,1267.6,3.2078]
[1673041462731,1.579,1267.8,1267.6,4.38727342]
[1673041463046,1.579,1267.8,1267.6,3.2078]
[1673041467881,1.579,1267.8,1267.5,2.75847342]
[1673041468085,1.579,1267.8,1267.5,5.96627342]
[1673041469976,1.579,1267.8,1267.5,7.73868891]
[1673041470403,1.579,1267.8,1267.5,5.96627342]
[1673041470930,1.579,1267.8,1267.5,7.73868891]
[1673041471770,1.579,1267.8,1267.5,4.53088891]
[1673041471971,1.579,1267.8,1267.5,7.73868891]
[1673041474284,1.579,1267.8,1267.5,4.53088891]
[1673041474491,1.579,1267.8,1267.6,3.2078]
[1673041475238,1.579,1267.8,1267.5,4.53088891]
[1673041475443,1.579,1267.8,1267.6,3.2078]
[1673041476708,1.579,1267.8,1267.6,4.38727342]
[1673041477863,6.30664145,1267.8,1267.6,3.2078]
[1673041479647,6.30664145,1267.8,1267.5,2.75847342]
[1673041480485,6.30664145,1267.8,1267.5,5.96627342]
[1673041480802,6.30664145,1267.8,1267.5,2.75847342]
[1673041481006,6.30664145,1267.8,1267.5,5.96627342]
[1673041483009,1.573,1267.7,1267.5,4.38727342]
[1673041488061,3.158,1267.6,1267.4,1.17947342]
[1673041488372,1.578,1267.5,1267.3,6.15968891]
[1673041490786,1.578,1267.5,1267.3,4.38727342]
[1673041491001,1.578,1267.5,1267.3,1.17947342]
[1673041491732,1.578,1267.5,1267.4,3.2078]
[1673041492462,1.579,1267.7,1267.4,6.55921549]
[1673041492673,1.578,1267.8,1267.5,1.579]
[1673041492883,1.578,1267.8,1267.6,3.2078]
[1673041496986,4.72764145,1267.9,1267.7,3.158]
[1673041497202,10.03443237,1268.1,1267.8,4.7868]
[1673041497402,5.30679092,1268.1,1267.9,1.563]
[1673041497722,17.50019364,1268.2,1267.9,1.563]
[1673041498142,11.61343237,1268.2,1267.9,1.563]
[1673041498354,6.30664145,1268.2,1267.9,1.563]
[1673041500039,6.30664145,1268.2,1267.9,4.7708]
[1673041502983,1.579,1268.1,1267.8,1.579]
[1673041503389,6.30664145,1268.1,1267.8,1.579]
[1673041504027,6.30664145,1268.1,1267.8,4.7868]
[1673041506555,6.30664145,1268.1,1267.8,1.579]
[1673041506764,9.51444145,1268.1,1267.8,4.7868]
[1673041508443,4.7868,1268.1,1267.8,4.7868]
[1673041512330,1.579,1268.1,1267.8,4.7868]
[1673041514841,1.579,1268.2,1267.9,1.579]
[1673041515058,1.579,1268.2,1268.0,3.2078]
[1673041520840,1.573,1268.1,1268.0,3.2078]
[1673041521059,1.573,1268.1,1267.8,4.7758]
[1673041526735,1.573,1268.1,1267.9,3.2078]
[1673041533779,1.573,1268.1,1267.8,1.568]
[1673041533990,6.30064145,1268.1,1267.8,4.7758]
[1673041536826,6.30064145,1268.1,1267.9,3.2078]
[1673041537356,6.30064145,1268.1,1267.8,1.568]
[1673041537769,6.30064145,1268.1,1267.9,3.2078]
[1673041540191,11.60743237,1268.1,1267.9,3.2078]
[1673041540510,11.60743237,1268.1,1267.8,1.568]
[1673041540720,11.60743237,1268.1,1267.8,4.7758]
[1673041542190,6.30064145,1268.1,1267.8,4.7758]
[1673041546822,6.30064145,1268.1,1267.9,3.2078]
[1673041547769,4.72764145,1268.2,1268.0,1.579]
[1673041547977,4.72764145,1268.2,1268.1,3.2078]
[1673041548189,11.61343237,1268.3,1268.1,3.2078]
[1673041549054,6.30664145,1268.3,1268.1,3.2078]
[1673041553154,11.61343237,1268.3,1268.1,3.2078]
[1673041553568,1.577,1268.2,1267.9,3.2078]
[1673041553815,1.578,1268.1,1267.9,3.2078]
[1673041555562,6.30564145,1268.1,1267.9,3.2078]
[1673041557140,1.573,1268.0,1267.9,3.2078]
[1673041559453,1.573,1268.0,1267.8,3.2078]
[1673041560084,1.573,1268.0,1267.7,1.579]
[1673041560292,1.573,1268.0,1267.8,3.2078]
[1673041564702,1.573,1268.0,1267.7,3.35141549]
[1673041564920,1.573,1268.0,1267.8,3.2078]
[1673041565968,1.573,1268.0,1267.7,3.35141549]
[1673041566183,1.573,1268.0,1267.8,3.2078]
[1673041568814,1.573,1268.0,1267.7,1.579]
[1673041569238,1.573,1268.0,1267.7,4.7835146]
[1673041569760,1.571,1267.9,1267.7,3.2078]
[1673041577417,1.571,1267.9,1267.6,1.563]
[1673041577737,1.576,1267.7,1267.5,4.98021549]
[1673041577955,1.579,1267.6,1267.5,3.2078]
[1673041578882,1.579,1267.6,1267.4,6.55921549]
[1673041580571,1.579,1267.6,1267.4,3.35141549]
[1673041580782,1.579,1267.6,1267.4,6.55921549]
[1673041581930,1.579,1267.5,1267.4,3.2078]
[1673041583086,1.579,1267.5,1267.2,4.98021549]
[1673041583304,1.573,1267.4,1267.2,4.98021549]
[1673041584353,1.573,1267.4,1267.2,3.2078]
[1673041588339,1.573,1267.4,1267.2,4.98021549]
[1673041588979,1.573,1267.4,1267.3,3.2078]
[1673041592967,1.567,1267.5,1267.3,3.2078]
[1673041594551,1.579,1267.6,1267.3,4.7868]
[1673041598551,1.579,1267.5,1267.3,3.2078]
[1673041599595,1.579,1267.5,1267.2,3.35141549]
[1673041599813,1.579,1267.5,1267.3,3.2078]
[1673041601705,1.579,1267.5,1267.2,3.35141549]
[1673041602130,1.579,1267.5,1267.3,3.2078]
[1673041603808,1.579,1267.5,1267.2,3.35141549]
[1673041604022,1.579,1267.5,1267.3,3.2078]
[1673041605079,1.579,1267.5,1267.3,4.98021549]
[1673041606855,1.579,1267.5,1267.3,7.34728109]
[1673041607177,1.579,1267.5,1267.4,3.2078]
[1673041609491,1.579,1267.5,1267.3,1.77241549]
[1673041609701,1.579,1267.5,1267.4,3.2078]
[1673041610536,1.579,1267.5,1267.3,1.77241549]
[1673041610951,1.579,1267.5,1267.4,3.2078]
[1673041611590,1.579,1267.5,1267.4,4.38632697]
[1673041612963,1.579,1267.6,1267.4,4.38632697]
[1673041616965,1.579,1267.6,1267.4,6.15874246]
[1673041618432,1.579,1267.6,1267.5,1.17852697]
[1673041619165,1.579,1267.6,1267.4,6.15874246]
[1673041619376,1.579,1267.6,1267.4,4.38632697]
[1673041619591,1.579,1267.6,1267.3,4.52994246]
[1673041619913,9.51444145,1267.6,1267.3,2.75752697]
[1673041620330,4.7868,1267.6,1267.3,2.75752697]
[1673041620646,4.7868,1267.6,1267.3,4.52994246]
[1673041621172,1.579,1267.6,1267.4,1.17852697]
[1673041623064,1.579,1267.5,1267.4,1.17852697]
[1673041623475,6.30464145,1267.7,1267.4,2.75752697]
[1673041623684,1.577,1267.7,1267.4,2.75752697]
[1673041624323,6.30464145,1267.7,1267.4,2.75752697]
[1673041624848,1.579,1267.6,1267.4,1.17852697]
[1673041629892,1.579,1267.6,1267.4,4.38632697]
[1673041630201,1.579,1267.6,1267.4,1.17852697]
[1673041630413,1.579,1267.6,1267.4,4.38632697]
[1673041630624,1.579,1267.6,1267.5,1.17852697]
[1673041630835,1.579,1267.6,1267.4,6.15874246]
[1673041631046,1.579,1267.6,1267.5,1.17852697]
[1673041631459,1.579,1267.6,1267.4,6.15874246]
[1673041631784,1.579,1267.6,1267.5,1.17852697]
[1673041632412,1.579,1267.6,1267.4,6.15874246]
[1673041632830,1.579,1267.6,1267.4,2.95094246]
[1673041633151,1.579,1267.6,1267.4,6.15874246]
[1673041633994,1.579,1267.6,1267.4,2.95094246]
[1673041634826,1.579,1267.6,1267.4,1.17852697]
[1673041638187,1.579,1267.6,1267.3,7.73774246]
[1673041638400,1.579,1267.6,1267.4,1.17852697]
[1673041639038,1.579,1267.6,1267.4,1.17226453]
[1673041639669,1.579,1267.6,1267.4,2.94468002]
[1673041640087,1.579,1267.6,1267.5,3.2078]
[1673041648709,1.579,1267.6,1267.5,4.98021549]
[1673041649750,1.579,1267.6,1267.5,1.77241549]
[1673041649961,1.579,1267.6,1267.5,4.98021549]
[1673041650485,1.579,1267.6,1267.5,3.2078]
[1673041655744,1.579,1267.6,1267.4,3.35141549]
[1673041655955,1.579,1267.6,1267.5,3.2078]
[1673041658178,1.579,1267.6,1267.5,4.98021549]
[1673041666786,1.579,1267.6,1267.5,1.77241549]
[1673041667001,1.579,1267.6,1267.5,4.98021549]
[1673041667424,1.579,1267.6,1267.5,3.2078]
[1673041668160,1.57534644,1267.6,1267.5,3.2078]
[1673041668788,1.57534644,1267.6,1267.4,1.579]
[1673041672992,1.567,1267.5,1267.3,6.54921549]
[1673041673203,1.567,1267.5,1267.3,4.7768]
[1673041673407,1.567,1267.5,1267.3,6.54921549]
[1673041675827,1.567,1267.5,1267.4,3.2078]
[1673041676148,3.156,1267.5,1267.2,4.98021549]
[1673041676354,1.567,1267.3,1267.2,3.2078]
[1673041676566,1.577,1267.4,1267.2,3.2078]
[1673041677618,1.579,1267.3,1267.2,3.2078]
[1673041679306,1.579,1267.3,1267.0,6.55321549]
[1673041680145,1.579,1267.3,1267.1,3.2078]
[1673041681305,1.579,1267.3,1267.0,3.34541549]
[1673041681516,1.579,1267.3,1267.0,6.55321549]
[1673041681939,1.579,1267.3,1267.0,3.34541549]
[1673041682149,1.579,1267.3,1267.0,6.55321549]
[1673041685828,1.579,1267.3,1267.0,3.34541549]
[1673041686039,1.579,1267.3,1267.0,6.55321549]
[1673041686774,1.579,1267.3,1267.0,4.7808]
[1673041692962,1.578,1267.2,1267.0,3.2078]
[1673041695180,1.578,1267.2,1266.9,4.7868]
[1673041696862,1.578,1267.2,1266.9,1.579]
[1673041697075,7.897,1267.4,1266.8,1.77241549]
[1673041697279,1.573,1267.2,1266.9,4.7868]
[1673041697691,1.573,1267.2,1266.9,1.579]
[1673041697908,1.573,1267.2,1266.9,4.7868]
[1673041703159,1.579,1267.2,1266.9,1.579]
[1673041703368,1.579,1267.2,1266.9,4.7868]
[1673041703574,1.567,1267.0,1266.9,3.2078]
[1673041705789,1.567,1267.0,1266.8,1.579]
[1673041706003,1.567,1267.0,1266.8,4.7868]
[1673041706205,1.567,1267.0,1266.8,6.55921549]
[1673041713252,1.567,1267.0,1266.8,8.92628109]
[1673041713675,1.567,1267.0,1266.8,5.71848109]
[1673041713883,1.567,1267.0,1266.8,8.92628109]
[1673041714829,1.567,1267.0,1266.8,6.55921549]
[1673041715354,1.567,1267.0,1266.9,1.77241549]
[1673041717675,1.567,1267.0,1266.9,4.98021549]
[1673041723883,1.567,1267.0,1266.9,4.98021549]
[1673041725558,1.567,1267.0,1266.9,1.77241549]
[1673041727879,1.567,1267.0,1266.8,8.92628109]
[1673041728819,1.567,1267.0,1266.9,1.77241549]
[1673041731772,1.567,1267.0,1266.9,4.13948109]
[1673041731983,1.567,1267.0,1266.9,2.3670656]
[1673041733244,1.567,1267.0,1266.9,3.76589036]
[1673041736922,1.567,1267.0,1266.9,2.3670656]
[1673041737240,1.567,1267.0,1266.9,4.1397139]
[1673041737454,1.567,1267.0,1266.9,2.3670656]
[1673041738078,1.567,1267.0,1266.9,1.77255698]
[1673041739551,1.567,1267.0,1266.9,4.13962258]
[1673041740283,1.567,1267.0,1266.9,4.13427947]
[1673041741443,1.567,1267.0,1266.9,2.3670656]
[1673041741754,1.567,1267.0,1266.9,3.76591034]
[1673041742078,1.567,1267.0,1266.9,4.35384969]
[1673041742806,1.567,1267.0,1266.9,5.93284969]
[1673041743126,1.579,1267.2,1266.9,5.93284969]
[1673041743339,1.579,1267.2,1267.1,3.2078]
[1673041744805,1.579,1267.2,1267.0,3.2078]
[1673041747746,1.579,1267.2,1267.1,3.2078]
[1673041748373,1.579,1267.3,1267.1,4.7788]
[1673041751429,1.579,1267.3,1267.2,3.2078]
[1673041752169,1.579,1267.3,1267.1,1.571]
[1673041755521,18.48364145,1267.5,1267.0,3.2078]
[1673041755735,1.579,1267.4,1267.1,1.571]
[1673041758465,6.30664145,1267.4,1267.1,1.571]
[1673041758671,9.51444145,1267.4,1267.1,1.571]
[1673041759096,7.93544145,1267.4,1267.0,4.3878593]
[1673041759303,9.51444145,1267.4,1267.1,1.571]
[1673041759619,4.7868,1267.4,1267.1,1.571]
[1673041763091,1.579,1267.3,1267.1,1.571]
[1673041767182,1.579,1267.3,1267.1,4.7788]
[1673041768240,1.579,1267.3,1267.1,1.571]
[1673041768444,1.579,1267.3,1267.1,2.7510593]
[1673041770122,1.579,1267.3,1267.1,5.9588593]
[1673041770332,1.57414359,1267.3,1267.1,5.9588593]
[1673041770756,1.57414359,1267.3,1267.1,2.7510593]
[1673041772747,1.57414359,1267.3,1267.1,1.571]
[1673041772960,1.567,1267.3,1267.0,5.9668593]
[1673041775588,1.567,1267.3,1267.0,2.7590593]
[1673041775904,6.30664145,1267.4,1267.0,2.7590593]
[1673041775905,1.576,1267.1,1267.0,4.3878593]
[1673041781684,1.579,1267.1,1267.0,4.3878593]
[1673041782316,1.579,1267.1,1267.0,1.1800593]
[1673041787377,1.579,1267.1,1266.9,4.3878593]
[1673041787581,1.579,1267.0,1266.9,4.3878593]
[1673041789995,1.579,1267.0,1266.9,4.38894212]
[1673041790205,1.579,1267.0,1266.9,4.38896991]
[1673041790417,1.579,1267.0,1266.9,3.2078]
[1673041793560,1.579,1267.0,1266.9,4.38901437]
[1673041793776,1.579,1267.0,1266.9,3.2078]
[1673041793987,1.579,1267.0,1266.9,4.38906508]
[1673041794407,1.579,1267.0,1266.9,1.18126508]
[1673041797140,1.579,1267.0,1266.9,4.38906508]
[1673041800291,1.579,1267.0,1266.9,6.16051392]
[1673041800709,1.579,1267.0,1266.9,4.38906508]
[1673041801551,1.579,1267.0,1266.9,6.16051392]
[1673041804712,1.579,1267.0,1266.9,4.38906508]
[1673041805657,1.579,1267.0,1266.9,6.16051392]
[1673041812798,1.579,1267.0,1266.9,4.97924884]
[1673041813004,1.577,1267.1,1266.9,4.97924884]
[1673041813216,1.577,1267.1,1266.9,6.16095401]
[1673041815531,1.577,1267.1,1267.0,1.18170517]
[1673041817943,1.577,1267.1,1267.0,2.95315401]
[1673041820785,1.577,1267.1,1267.0,1.77144884]
[1673041820995,1.577,1267.1,1267.0,2.95350003]
[1673041821933,1.577,1267.1,1267.0,1.18205119]
[1673041831399,1.577,1267.1,1266.9,6.16130003]
[1673041832975,1.579,1267.1,1266.9,6.16130003]
[1673041837701,1.579,1267.1,1267.0,1.18205119]
[1673041837911,1.579,1267.1,1266.9,6.16130003]
[1673041840644,1.579,1267.1,1267.0,1.18205119]
[1673041840964,1.577,1267.2,1267.0,4.52650003]
[1673041841170,1.577,1267.2,1267.1,4.38985119]
[1673041841380,1.579,1267.3,1267.1,5.96885119]
[1673041842212,1.579,1267.3,1267.2,3.2078]
[1673041847373,1.579,1267.3,1267.1,1.579]
[1673041848213,1.579,1267.3,1267.1,4.7868]
[1673041849580,1.579,1267.3,1267.1,4.78178496]
[1673041850945,1.579,1267.3,1267.1,1.57398496]
[1673041851261,1.579,1267.3,1267.1,4.78178496]
[1673041852933,1.579,1267.3,1267.1,3.2078]
[1673041853150,1.577,1267.3,1267.0,5.95385119]
[1673041853889,1.578,1267.1,1267.0,4.38985119]
[1673041854098,1.578,1267.1,1267.0,3.2078]
[1673041854624,1.578,1267.1,1267.0,4.38985119]
[1673041856519,1.578,1267.1,1267.0,3.2078]
[1673041857673,1.578,1267.1,1267.0,4.38985119]
[1673041860618,1.578,1267.1,1267.0,1.18205119]
[1673041860828,1.578,1267.1,1267.0,4.38985119]
[1673041861767,1.578,1267.1,1267.0,3.2078]
[1673041862087,1.578,1267.1,1267.0,4.38985119]
[1673041863030,1.577,1267.3,1267.0,7.74030003]
[1673041863244,1.577,1267.3,1267.2,3.2078]
[1673041864084,1.577,1267.3,1267.0,7.74030003]
[1673041864505,1.577,1267.3,1267.0,5.96885119]
[1673041866390,1.577,1267.3,1267.0,7.74030003]
[1673041866711,1.577,1267.3,1267.0,5.96885119]
[1673041867337,1.577,1267.3,1267.0,7.74030003]
[1673041867550,1.577,1267.3,1267.0,5.96885119]
[1673041868377,1.577,1267.3,1267.0,7.74030003]
[1673041869019,1.577,1267.3,1267.0,5.96885119]
[1673041869539,1.577,1267.3,1267.0,7.74030003]
[1673041870281,1.577,1267.3,1267.1,3.2078]
[1673041873009,1.573,1267.3,1267.1,3.2078]
[1673041876270,1.573,1267.3,1267.0,5.96885119]
[1673041879842,6.30064145,1267.3,1267.0,2.76105119]
[1673041880045,6.30064145,1267.3,1267.0,5.96885119]
[1673041880466,1.573,1267.3,1267.0,5.96885119]
[1673041882995,1.577,1267.3,1267.0,5.96885119]
[1673041883313,6.30464145,1267.3,1267.0,7.74030003]
[1673041884570,1.577,1267.3,1267.0,7.74030003]
[1673041885203,1.577,1267.3,1267.0,4.53250003]
[1673041885624,1.577,1267.3,1267.0,7.74030003]
[1673041886147,1.577,1267.3,1267.0,4.53250003]
[1673041886353,1.577,1267.3,1267.0,7.74030003]
[1673041886564,1.577,1267.3,1267.1,1.18205119]
[1673041887409,1.577,1267.3,1267.1,4.38985119]
[1673041887831,1.577,1267.3,1267.1,3.2078]
[1673041888897,6.30464145,1267.3,1267.1,3.2078]
[1673041890044,6.30464145,1267.3,1267.0,7.74030003]
[1673041891196,6.30464145,1267.3,1267.0,5.96885119]
[1673041893093,6.30464145,1267.3,1267.0,5.95285119]
[1673041893823,6.30464145,1267.3,1267.0,2.74505119]
[1673041894039,9.51244145,1267.3,1267.0,2.74505119]
[1673041895505,9.51244145,1267.3,1267.0,4.51650003]
[1673041895927,6.30464145,1267.3,1267.0,7.72430003]
[1673041896671,6.30464145,1267.3,1267.0,4.51650003]
[1673041896882,6.30464145,1267.3,1267.0,7.72430003]
[1673041898872,6.30464145,1267.3,1267.0,4.51650003]
[1673041899082,6.30464145,1267.3,1267.0,7.72430003]
[1673041899396,6.30464145,1267.3,1267.0,5.95285119]
[1673041899609,4.72764145,1267.3,1267.0,4.38985119]
[1673041899819,6.30664145,1267.3,1267.0,5.96885119]
[1673041900029,6.30664145,1267.3,1267.0,2.76105119]
[1673041900241,6.30664145,1267.3,1267.0,5.96885119]
[1673041902136,6.30664145,1267.3,1267.0,2.76105119]
[1673041902342,6.30664145,1267.3,1267.0,5.96885119]
[1673041903389,7.93544145,1267.3,1267.0,4.38985119]
[1673041903600,1.567,1267.2,1267.0,5.96885119]
[1673041904963,1.579,1267.1,1266.9,2.76105119]
[1673041905173,1.579,1267.0,1266.9,2.95350003]
[1673041905385,1.579,1267.0,1266.9,1.18205119]
[1673041916952,1.579,1267.0,1266.9,4.38985119]
[1673041919574,1.579,1267.0,1266.9,1.18205119]
[1673041919988,1.579,1267.0,1266.9,4.38985119]
[1673041923361,1.579,1267.0,1266.9,4.38190019]
[1673041926307,1.579,1267.0,1266.9,6.15334903]
[1673041926725,1.579,1267.0,1266.9,4.38190019]
[1673041929983,1.579,1267.0,1266.9,6.15334903]
[1673041930401,1.579,1267.0,1266.9,2.94554903]
[1673041930606,1.579,1267.0,1266.9,4.38190019]
[1673041931664,1.579,1267.0,1266.9,1.17410019]
[1673041931865,1.579,1267.0,1266.9,4.38190019]
[1673041932076,1.579,1267.0,1266.9,6.15334903]
[1673041932714,1.579,1267.0,1266.9,2.94554903]
[1673041933026,1.579,1267.0,1266.9,6.15334903]
[1673041933229,1.579,1267.0,1266.9,2.94554903]
[1673041933440,1.579,1267.0,1266.9,6.15334903]
[1673041936486,1.579,1267.0,1266.9,2.94554903]
[1673041936698,1.579,1267.0,1266.9,4.38190019]
[1673041937651,1.579,1267.0,1266.9,6.15334903]
[1673041939225,1.579,1267.0,1266.9,4.38190019]
[1673041939851,1.579,1267.0,1266.9,1.17410019]
[1673041941432,1.579,1267.0,1266.9,2.94554903]
[1673041941848,1.579,1267.0,1266.9,1.77144884]
[1673041943111,1.577,1267.2,1266.9,5.70267306]
[1673041943318,1.577,1267.2,1267.0,4.97924884]
[1673041947204,1.577,1267.2,1267.0,3.2078]
[1673041947841,1.577,1267.2,1266.9,3.34044884]
[1673041949113,1.577,1267.2,1266.9,6.54824884]
[1673041950364,6.30464145,1267.2,1266.9,4.7768]
[1673041951100,1.577,1267.2,1266.9,6.54824884]
[1673041951310,1.577,1267.2,1266.9,4.7768]
[1673041951941,6.30464145,1267.2,1266.9,4.7768]
[1673041954152,9.51244145,1267.2,1266.9,1.569]
[1673041960565,6.30464145,1267.2,1266.9,1.569]
[1673041960769,6.30464145,1267.2,1266.9,4.7768]
[1673041961092,1.577,1267.2,1266.9,6.54824884]
[1673041962867,1.577,1267.2,1266.9,4.7768]
[1673041963189,1.579,1267.1,1266.9,4.7868]
[1673041963413,1.579,1267.1,1266.9,1.579]
[1673041963711,1.579,1267.1,1266.9,4.7868]
[1673041964552,1.579,1267.1,1266.9,1.579]
[1673041964765,1.579,1267.1,1266.9,4.7868]
[1673041966344,1.579,1267.1,1266.9,6.55824884]
[1673041966756,1.579,1267.1,1266.9,3.35044884]
[1673041966965,1.579,1267.1,1266.9,6.55824884]
[1673041967711,1.579,1267.1,1266.9,3.35044884]
[1673041967914,1.579,1267.1,1266.9,4.7868]
[1673041968861,1.579,1267.1,1266.9,6.55824884]
[1673041974540,1.579,1267.1,1267.0,3.2078]
[1673041976948,7.93544145,1267.3,1267.0,3.2078]
[1673041977168,1.579,1267.1,1267.0,3.2078]